[Event "44th Chess Olympiad Women 2022"]
[Site "Chennai"]
[Date "2022.08.06"]
[Round "8.67"]
[White "Esse, Akua Kosife"]
[Black "Sy Mame, Binta"]
[Result "1/2-1/2"]
[WhiteElo "1329"]
[BlackElo "1256"]
[Annotator "NA RC"]
[PlyCount "86"]
[EventDate "2022.??.??"]
[TimeControl "60"]

1. d4 {[%emt 0:00:03]} d5 {[%emt 0:00:20]} 2. e3 {[%emt 0:00:37]} Nf6 {[%emt 0:
00:00]} 3. f4 {[%emt 0:02:15]} e6 {[%emt 0:01:12]} 4. Nf3 {[%emt 0:00:57]} Nc6
{[%emt 0:00:33]} 5. Bd3 {[%emt 0:01:06]} Be7 {[%emt 0:00:51]} 6. O-O {[%emt 0:
00:00]} h6 {[%emt 0:01:05]} 7. Ne5 {[%emt 0:02:16]} O-O {[%emt 0:03:00]} 8. a3
{[%emt 0:05:34]} Bd7 {[%emt 0:00:42]} 9. Nd2 {[%emt 0:02:58]} a6 {[%emt 0:00:
00]} 10. b4 {[%emt 0:00:59]} Na7 {[%emt 0:10:52]} 11. Nb3 {[%emt 0:08:34]} Bb5
{[%emt 0:02:30]} 12. Bb2 {[%emt 0:17:44]} Bxd3 {[%emt 0:03:29]} 13. Qxd3 {
[%emt 0:00:50]} Ne4 {[%emt 0:04:14]} 14. c4 {[%emt 0:04:30]} b5 {[%emt 0:01:42]
} 15. c5 {[%emt 0:01:09]} c6 {[%emt 0:01:19]} 16. Nd2 {[%emt 0:00:55]} f5 {
[%emt 0:04:45]} 17. Ndf3 {[%emt 0:03:13]} Rc8 {[%emt 0:04:16]} 18. a4 {[%emt 0:
00:00]} Rc7 {[%emt 0:05:25]} 19. axb5 {[%emt 0:00:37]} axb5 {[%emt 0:00:30]}
20. Ng6 {[%emt 0:02:21]} Rf6 {[%emt 0:00:38]} 21. Nxe7+ {[%emt 0:01:08]} Qxe7 {
[%emt 0:00:19]} 22. Ne5 {[%emt 0:00:24]} Qe8 {[%emt 0:01:54]} 23. Ra6 {[%emt 0:
00:00]} Rf8 {[%emt 0:01:01]} 24. Rfa1 {[%emt 0:03:55]} Nc8 {[%emt 0:05:30]} 25.
Ra8 {[%emt 0:03:05]} Qh5 {[%emt 0:01:51]} 26. Rf1 {[%emt 0:03:05]} Ra7 {
[%emt 0:01:19]} 27. Rxa7 {[%emt 0:00:57]} Nxa7 {[%emt 0:00:17]} 28. Ra1 {
[%emt 0:00:55]} Qh4 {[%emt 0:02:47]} 29. Qe2 {[%emt 0:03:47]} Nc8 {[%emt 0:00:
00]} 30. Ng6 {[%emt 0:03:07]} Qf6 {[%emt 0:06:03]} 31. Nxf8 {[%emt 0:00:22]}
Qxf8 {[%emt 0:03:17]} 32. Ra8 {[%emt 0:02:29]} Kh7 {[%emt 0:00:39]} 33. Qe1 {
[%emt 0:01:40]} Nf6 {[%emt 0:01:10]} 34. Qa1 {[%emt 0:00:57]} Qf7 {[%emt 0:00:
00]} 35. Rxc8 {[%emt 0:00:30]} Qh5 {[%emt 0:01:06]} 36. h3 {[%emt 0:01:44]} Qe2
{[%emt 0:00:53]} 37. Qc1 {[%emt 0:02:05]} Ne4 {[%emt 0:00:33]} 38. Kh2 {
[%emt 0:03:54]} Qf2 {[%emt 0:00:26]} 39. Bc3 {[%emt 0:02:14]} Qg3+ {[%emt 0:00:
00]} 40. Kg1 {[%emt 0:00:28]} Qf2+ {[%emt 0:00:39]} 41. Kh2 {[%emt 0:30:42]}
Qg3+ {[%emt 0:32:03]} 42. Kg1 {[%emt 0:01:30]} Qf2+ {[%emt 0:00:09]} 43. Kh2 {
[%emt 0:00:22]} Qg3+ {[%emt 0:00:06]} 1/2-1/2

[Event "44th Chess Olympiad Women 2022"]
[Site "Chennai"]
[Date "2022.08.06"]
[Round "8.67"]
[White "Marochkina, Nadezhda Valerevna"]
[Black "De Souza, Ivana Claudia Eyram"]
[Result "1-0"]
[WhiteElo "1687"]
[BlackElo "1167"]
[Annotator "NA RC"]
[PlyCount "121"]
[EventDate "2022.??.??"]
[TimeControl "60"]

1. d4 {[%emt 0:00:03]} Nf6 {[%emt 0:00:08]} 2. c4 {[%emt 0:00:04]} e5 {[%emt 0:
00:00]} 3. dxe5 {[%emt 0:00:33]} Ne4 {[%emt 0:00:37]} 4. Nf3 {[%emt 0:00:47]}
Bb4+ {[%emt 0:01:09]} 5. Nbd2 {[%emt 0:01:16]} O-O {[%emt 0:03:40]} 6. a3 {
[%emt 0:00:11]} Nxd2 {[%emt 0:03:32]} 7. Bxd2 {[%emt 0:00:36]} Bxd2+ {[%emt 0:
00:00]} 8. Qxd2 {[%emt 0:00:09]} Nc6 {[%emt 0:01:04]} 9. g3 {[%emt 0:07:39]}
Re8 {[%emt 0:01:00]} 10. Bg2 {[%emt 0:07:35]} Nxe5 {[%emt 0:02:40]} 11. Nxe5 {
[%emt 0:00:13]} Rxe5 {[%emt 0:00:47]} 12. O-O {[%emt 0:00:43]} Qe7 {[%emt 0:00:
00]} 13. e3 {[%emt 0:00:38]} c6 {[%emt 0:03:59]} 14. Rfd1 {[%emt 0:02:10]} b5 {
[%emt 0:05:12]} 15. cxb5 {[%emt 0:00:56]} Rxb5 {[%emt 0:00:38]} 16. b4 {
[%emt 0:07:36]} d5 {[%emt 0:06:10]} 17. Rac1 {[%emt 0:02:37]} Bd7 {[%emt 0:00:
00]} 18. e4 {[%emt 0:02:04]} Rc8 {[%emt 0:05:44]} 19. exd5 {[%emt 0:01:51]}
cxd5 {[%emt 0:02:12]} 20. Rxc8+ {[%emt 0:00:32]} Bxc8 {[%emt 0:00:30]} 21. Bxd5
{[%emt 0:00:55]} Bb7 {[%emt 0:19:19]} 22. Bc4 {[%emt 0:07:55]} Re5 {[%emt 0:00:
00]} 23. Qd8+ {[%emt 0:00:20]} Qf8 {[%emt 0:00:45]} 24. Qxf8+ {[%emt 0:00:46]}
Kxf8 {[%emt 0:00:44]} 25. f4 {[%emt 0:00:30]} Re7 {[%emt 0:01:31]} 26. Bb5 {
[%emt 0:01:39]} f6 {[%emt 0:02:20]} 27. Rd8+ {[%emt 0:03:13]} Kf7 {[%emt 0:00:
00]} 28. f5 {[%emt 0:01:53]} g6 {[%emt 0:01:23]} 29. Bc4+ {[%emt 0:04:45]} Kg7
{[%emt 0:00:24]} 30. fxg6 {[%emt 0:01:28]} hxg6 {[%emt 0:01:05]} 31. Bd5 {
[%emt 0:02:01]} Bxd5 {[%emt 0:10:56]} 32. Rxd5 {[%emt 0:00:10]} Kf8 {[%emt 0:
00:00]} 33. Rd6 {[%emt 0:01:42]} Kf7 {[%emt 0:00:24]} 34. Kf2 {[%emt 0:00:22]}
Rc7 {[%emt 0:01:53]} 35. h4 {[%emt 0:02:21]} Ke7 {[%emt 0:00:25]} 36. Rd3 {
[%emt 0:00:22]} Rc2+ {[%emt 0:01:32]} 37. Ke3 {[%emt 0:00:23]} f5 {[%emt 0:00:
00]} 38. Kf4 {[%emt 0:01:03]} Rc4+ {[%emt 0:01:01]} 39. Ke5 {[%emt 0:01:40]}
Re4+ {[%emt 0:00:38]} 40. Kd5 {[%emt 0:00:33]} Kd7 {[%emt 0:00:52]} 41. Kc5+ {
[%emt 0:31:26]} Kc7 {[%emt 0:30:27]} 42. Rf3 {[%emt 0:04:32]} Re5+ {[%emt 0:00:
00]} 43. Kc4 {[%emt 0:01:57]} Re4+ {[%emt 0:00:08]} 44. Kd5 {[%emt 0:00:47]}
Kd7 {[%emt 0:00:26]} 45. h5 {[%emt 0:01:27]} gxh5 {[%emt 0:01:02]} 46. Rxf5 {
[%emt 0:00:06]} Re3 {[%emt 0:00:50]} 47. Rf7+ {[%emt 0:04:10]} Ke8 {[%emt 0:00:
00]} 48. Rxa7 {[%emt 0:00:35]} Rxg3 {[%emt 0:00:11]} 49. b5 {[%emt 0:01:50]}
Rg5+ {[%emt 0:00:47]} 50. Ke6 {[%emt 0:01:17]} Kd8 {[%emt 0:00:19]} 51. a4 {
[%emt 0:00:48]} Rg6+ {[%emt 0:00:42]} 52. Kf5 {[%emt 0:00:11]} Rg3 {[%emt 0:00:
00]} 53. Ke6 {[%emt 0:00:00]} Kc8 {[%emt 0:00:00]} 54. a5 {[%emt 0:00:00]} Kb8
{[%emt 0:00:00]} 55. b6 {[%emt 0:01:06]} h4 {[%emt 0:00:00]} 56. Rh7 {[%emt 0:
00:00]} Ra3 {[%emt 0:02:32]} 57. Rh5 {[%emt 0:00:00]} h3 {[%emt 0:00:27]} 58.
Kd6 {[%emt 0:00:00]} h2 {[%emt 0:00:29]} 59. Rxh2 {[%emt 0:00:00]} Rxa5 {
[%emt 0:00:06]} 60. Kc6 {[%emt 0:00:00]} Re5 {[%emt 0:01:01]} 61. Rh7 {[%emt 0:
00:00]} 1-0

[Event "44th Chess Olympiad Women 2022"]
[Site "Chennai"]
[Date "2022.08.06"]
[Round "8.73"]
[White "Martins, Katlene Jussara"]
[Black "Inthavong, Maly"]
[Result "0-1"]
[WhiteElo "1287"]
[BlackElo "1231"]
[Annotator "NA RC"]
[PlyCount "42"]
[EventDate "2022.??.??"]
[TimeControl "60"]

1. e4 {[%emt 0:00:02]} e5 {[%emt 0:00:11]} 2. Nf3 {[%emt 0:00:09]} Nc6 {
[%emt 0:00:19]} 3. Nc3 {[%emt 0:00:10]} Bc5 {[%emt 0:00:56]} 4. Bc4 {[%emt 0:
00:00]} d6 {[%emt 0:00:52]} 5. O-O {[%emt 0:00:17]} Nge7 {[%emt 0:00:19]} 6.
Ng5 {[%emt 0:01:27]} O-O {[%emt 0:00:18]} 7. Qf3 {[%emt 0:01:11]} Qe8 {[%emt 0:
00:00]} 8. d3 {[%emt 0:02:28]} Nd4 {[%emt 0:00:18]} 9. Qg3 {[%emt 0:01:30]} Ng6
{[%emt 0:01:26]} 10. Be3 {[%emt 0:01:21]} Nxc2 {[%emt 0:00:38]} 11. Rad1 {
[%emt 0:01:30]} Nd4 {[%emt 0:01:00]} 12. Nd5 {[%emt 0:02:12]} Ne2+ {[%emt 0:00:
00]} 13. Kh1 {[%emt 0:00:57]} Nxg3+ {[%emt 0:00:12]} 14. hxg3 {[%emt 0:00:53]}
Qd7 {[%emt 0:01:30]} 15. Nf3 {[%emt 0:00:41]} c6 {[%emt 0:00:23]} 16. Bh6 {
[%emt 0:00:42]} cxd5 {[%emt 0:00:29]} 17. Bxd5 {[%emt 0:00:55]} gxh6 {[%emt 0:
00:00]} 18. Kg1 {[%emt 0:04:33]} Qg4 {[%emt 0:00:30]} 19. Nh2 {[%emt 0:01:20]}
Qxg3 {[%emt 0:00:17]} 20. Rd2 {[%emt 0:03:04]} Bh3 {[%emt 0:01:01]} 21. Kh1 {
[%emt 0:02:36]} Qxg2# {[%emt 0:02:31]} 0-1

[Event "44th Chess Olympiad Women 2022"]
[Site "Chennai"]
[Date "2022.08.06"]
[Round "8.78"]
[White "Comas Colon, Rinelly M."]
[Black "Petricenco, Ana"]
[Result "0-1"]
[WhiteElo "1585"]
[BlackElo "1912"]
[Annotator "NA RC"]
[PlyCount "86"]
[EventDate "2022.??.??"]
[TimeControl "60"]

1. c4 {[%emt 0:00:04]} c6 {[%emt 0:00:10]} 2. g3 {[%emt 0:00:51]} d5 {[%emt 0:
00:00]} 3. cxd5 {[%emt 0:01:33]} cxd5 {[%emt 0:00:08]} 4. d4 {[%emt 0:00:09]}
Nf6 {[%emt 0:01:18]} 5. Bg2 {[%emt 0:00:10]} Nc6 {[%emt 0:00:41]} 6. Nf3 {
[%emt 0:01:15]} Bf5 {[%emt 0:00:57]} 7. Nc3 {[%emt 0:00:42]} e6 {[%emt 0:00:37]
} 8. Ne5 {[%emt 0:09:48]} Bd6 {[%emt 0:15:16]} 9. Nxc6 {[%emt 0:10:26]} bxc6 {
[%emt 0:00:05]} 10. O-O {[%emt 0:01:22]} O-O {[%emt 0:02:36]} 11. Bg5 {[%emt 0:
00:00]} Be7 {[%emt 0:03:57]} 12. Qa4 {[%emt 0:06:17]} Qb6 {[%emt 0:06:32]} 13.
e4 {[%emt 0:17:30]} dxe4 {[%emt 0:16:01]} 14. Nxe4 {[%emt 0:08:24]} Nxe4 {
[%emt 0:05:05]} 15. Bxe7 {[%emt 0:00:50]} Rfe8 {[%emt 0:00:16]} 16. Ba3 {
[%emt 0:06:24]} Red8 {[%emt 0:03:58]} 17. Rad1 {[%emt 0:07:15]} Rac8 {[%emt 0:
00:00]} 18. Rfe1 {[%emt 0:01:45]} Nf6 {[%emt 0:10:35]} 19. Be7 {[%emt 0:06:52]}
Rd7 {[%emt 0:00:51]} 20. Bxf6 {[%emt 0:05:36]} gxf6 {[%emt 0:00:06]} 21. b3 {
[%emt 0:01:20]} Rd6 {[%emt 0:02:01]} 22. Rd2 {[%emt 0:08:32]} Rcd8 {[%emt 0:00:
00]} 23. Rc1 {[%emt 0:00:54]} Rxd4 {[%emt 0:08:45]} 24. Rxd4 {[%emt 0:00:22]}
Rxd4 {[%emt 0:00:21]} 25. Qxc6 {[%emt 0:02:02]} Rd2 {[%emt 0:08:32]} 26. Qxb6 {
[%emt 0:00:11]} axb6 {[%emt 0:00:05]} 27. a3 {[%emt 0:00:23]} Rd3 {[%emt 0:00:
00]} 28. b4 {[%emt 0:01:17]} Rxa3 {[%emt 0:00:25]} 29. Bc6 {[%emt 0:00:37]} Rb3
{[%emt 0:02:12]} 30. Rc4 {[%emt 0:00:31]} Bd3 {[%emt 0:04:30]} 31. Rd4 {
[%emt 0:00:15]} Rb1+ {[%emt 0:01:23]} 32. Kg2 {[%emt 0:00:07]} Bf1+ {[%emt 0:
00:00]} 33. Kf3 {[%emt 0:00:14]} Rb3+ {[%emt 0:01:09]} 34. Kg4 {[%emt 0:00:32]}
e5 {[%emt 0:00:55]} 35. Rd7 {[%emt 0:00:29]} Rxb4+ {[%emt 0:01:14]} 36. f4 {
[%emt 0:00:32]} exf4 {[%emt 0:00:55]} 37. gxf4 {[%emt 0:00:06]} h5+ {[%emt 0:
00:00]} 38. Kg3 {[%emt 0:00:47]} Bb5 {[%emt 0:00:32]} 39. Rd8+ {[%emt 0:00:45]}
Kg7 {[%emt 0:00:05]} 40. Bf3 {[%emt 0:00:46]} Rb3 {[%emt 0:00:29]} 41. Kf2 {
[%emt 0:30:34]} h4 {[%emt 0:02:27]} 42. Rb8 {[%emt 0:00:00]} Bd7 {[%emt 0:00:
00]} 43. Rb7 {[%emt 0:00:00]} Rxf3+ {[%emt 0:00:11]} 0-1

[Event "44th Chess Olympiad Women 2022"]
[Site "Chennai"]
[Date "2022.08.06"]
[Round "8.78"]
[White "Mihailova, Alina"]
[Black "Alvarado Perez, Coralys M."]
[Result "1/2-1/2"]
[WhiteElo "1926"]
[BlackElo "1471"]
[Annotator "NA"]
[PlyCount "111"]
[EventDate "2022.??.??"]
[TimeControl "60"]

1. d4 {[%emt 0:00:03]} d5 {[%emt 0:00:16]} 2. Nf3 {[%emt 0:00:26]} Nf6 {
[%emt 0:00:34]} 3. c4 {[%emt 0:00:10]} e6 {[%emt 0:00:07]} 4. g3 {[%emt 0:00:
00]} Be7 {[%emt 0:01:17]} 5. Bg2 {[%emt 0:00:06]} O-O {[%emt 0:00:52]} 6. O-O {
[%emt 0:00:06]} c5 {[%emt 0:13:03]} 7. cxd5 {[%emt 0:02:15]} Nxd5 {[%emt 0:00:
00]} 8. a3 {[%emt 0:00:31]} cxd4 {[%emt 0:15:20]} 9. Nxd4 {[%emt 0:01:04]} Bf6
{[%emt 0:04:11]} 10. e3 {[%emt 0:09:28]} Nc6 {[%emt 0:05:04]} 11. Nxc6 {
[%emt 0:03:29]} bxc6 {[%emt 0:00:07]} 12. Qe2 {[%emt 0:02:44]} Qb6 {[%emt 0:00:
00]} 13. Rd1 {[%emt 0:04:22]} Ba6 {[%emt 0:10:34]} 14. Qc2 {[%emt 0:00:15]}
Rad8 {[%emt 0:03:25]} 15. Nd2 {[%emt 0:15:42]} g6 {[%emt 0:14:12]} 16. Nf3 {
[%emt 0:13:41]} Ne7 {[%emt 0:01:36]} 17. Ne1 {[%emt 0:08:43]} Rxd1 {[%emt 0:00:
00]} 18. Qxd1 {[%emt 0:00:12]} Rd8 {[%emt 0:01:06]} 19. Qc2 {[%emt 0:01:30]} c5
{[%emt 0:01:02]} 20. Rb1 {[%emt 0:01:02]} Qa5 {[%emt 0:04:25]} 21. b4 {[%emt 0:
00:00]} cxb4 {[%emt 0:00:10]} 22. axb4 {[%emt 0:00:07]} Qb5 {[%emt 0:00:36]}
23. Bb2 {[%emt 0:04:13]} Bxb2 {[%emt 0:00:40]} 24. Qxb2 {[%emt 0:00:18]} Qe2 {
[%emt 0:01:19]} 25. Qxe2 {[%emt 0:04:16]} Bxe2 {[%emt 0:00:09]} 26. Bf3 {
[%emt 0:01:12]} Bxf3 {[%emt 0:01:49]} 27. Nxf3 {[%emt 0:00:04]} Nd5 {[%emt 0:
00:00]} 28. Nd4 {[%emt 0:02:23]} a6 {[%emt 0:01:43]} 29. h4 {[%emt 0:01:45]} h5
{[%emt 0:00:20]} 30. Kg2 {[%emt 0:00:18]} Kg7 {[%emt 0:00:34]} 31. Rb3 {
[%emt 0:02:30]} Rb8 {[%emt 0:03:44]} 32. b5 {[%emt 0:00:23]} axb5 {[%emt 0:00:
00]} 33. Rxb5 {[%emt 0:00:20]} Rxb5 {[%emt 0:00:19]} 34. Nxb5 {[%emt 0:00:03]}
Ne7 {[%emt 0:01:16]} 35. f3 {[%emt 0:00:38]} f6 {[%emt 0:01:17]} 36. e4 {
[%emt 0:03:09]} e5 {[%emt 0:00:52]} 37. g4 {[%emt 0:01:23]} hxg4 {[%emt 0:00:
00]} 38. fxg4 {[%emt 0:00:02]} Nc6 {[%emt 0:02:44]} 39. Kg3 {[%emt 0:02:04]}
Nd8 {[%emt 0:00:56]} 40. Nc7 {[%emt 0:00:23]} Nc6 {[%emt 0:00:54]} 41. h5 {
[%emt 0:30:50]} Kh6 {[%emt 0:05:26]} 42. Kh4 {[%emt 0:00:00]} Ne7 {[%emt 0:00:
00]} 43. Ne6 {[%emt 0:00:00]} Ng8 {[%emt 0:04:21]} 44. Nf8 {[%emt 0:00:00]}
gxh5 {[%emt 0:00:50]} 45. gxh5 {[%emt 0:00:00]} Kg7 {[%emt 0:00:18]} 46. Ng6 {
[%emt 0:00:00]} Nh6 {[%emt 0:00:25]} 47. Ne7 {[%emt 0:00:00]} Kf7 {[%emt 0:00:
00]} 48. Nd5 {[%emt 0:00:00]} Kg7 {[%emt 0:02:33]} 49. Ne3 {[%emt 0:00:00]} Nf7
{[%emt 0:03:24]} 50. Nf5+ {[%emt 0:00:00]} Kh7 {[%emt 0:00:26]} 51. Kg4 {
[%emt 0:00:00]} Ng5 {[%emt 0:00:48]} 52. Ng3 {[%emt 0:00:00]} Kg7 {[%emt 0:00:
00]} 53. Kf5 {[%emt 0:00:00]} Kh6 {[%emt 0:00:37]} 54. Kxf6 {[%emt 0:00:01]}
Nxe4+ {[%emt 0:00:25]} 55. Nxe4 {[%emt 0:00:07]} Kxh5 {[%emt 0:00:04]} 56. Kxe5
{[%emt 0:00:07]} 1/2-1/2

[Event "44th Chess Olympiad Women 2022"]
[Site "Chennai"]
[Date "2022.08.06"]
[Round "8.78"]
[White "Morales Santos, Natasha"]
[Black "Verbin, Valentina"]
[Result "0-1"]
[WhiteElo "1924"]
[BlackElo "2069"]
[Annotator "NA RC"]
[PlyCount "110"]
[EventDate "2022.??.??"]
[TimeControl "60"]

1. d4 {[%emt 0:00:12]} Nf6 {[%emt 0:00:25]} 2. c4 {[%emt 0:00:11]} e6 {[%emt 0:
00:00]} 3. Nc3 {[%emt 0:00:11]} Bb4 {[%emt 0:00:21]} 4. Qc2 {[%emt 0:00:16]}
O-O {[%emt 0:01:58]} 5. a3 {[%emt 0:00:20]} Bxc3+ {[%emt 0:00:28]} 6. Qxc3 {
[%emt 0:00:08]} b6 {[%emt 0:00:25]} 7. Bg5 {[%emt 0:00:56]} Bb7 {[%emt 0:00:08]
} 8. e3 {[%emt 0:00:21]} d6 {[%emt 0:01:22]} 9. Ne2 {[%emt 0:00:46]} Nbd7 {
[%emt 0:01:14]} 10. Qc2 {[%emt 0:01:18]} c5 {[%emt 0:13:43]} 11. Rd1 {[%emt 0:
00:00]} Qc7 {[%emt 0:06:49]} 12. Nc3 {[%emt 0:02:03]} a6 {[%emt 0:04:11]} 13.
f3 {[%emt 0:03:03]} cxd4 {[%emt 0:14:02]} 14. Rxd4 {[%emt 0:05:08]} Qc5 {
[%emt 0:02:29]} 15. Bxf6 {[%emt 0:12:28]} Nxf6 {[%emt 0:00:03]} 16. Qd2 {
[%emt 0:07:39]} Rfd8 {[%emt 0:10:45]} 17. Be2 {[%emt 0:18:48]} e5 {[%emt 0:00:
00]} 18. b4 {[%emt 0:09:56]} Qc7 {[%emt 0:01:03]} 19. Rd3 {[%emt 0:02:46]} Qxc4
{[%emt 0:03:49]} 20. Rxd6 {[%emt 0:10:17]} Qc7 {[%emt 0:00:29]} 21. Rxd8+ {
[%emt 0:03:30]} Rxd8 {[%emt 0:00:02]} 22. Qb2 {[%emt 0:01:07]} Rc8 {[%emt 0:00:
00]} 23. Nd1 {[%emt 0:03:48]} Nd5 {[%emt 0:04:17]} 24. Kf2 {[%emt 0:05:29]} b5
{[%emt 0:07:20]} 25. Re1 {[%emt 0:04:03]} f6 {[%emt 0:07:16]} 26. e4 {[%emt 0:
00:00]} Qb6+ {[%emt 0:02:38]} 27. Kg3 {[%emt 0:01:37]} Nf4 {[%emt 0:00:37]} 28.
Qb3+ {[%emt 0:01:05]} Qe6 {[%emt 0:02:55]} 29. Qxe6+ {[%emt 0:01:00]} Nxe6 {
[%emt 0:00:04]} 30. Bf1 {[%emt 0:00:48]} Rc1 {[%emt 0:00:42]} 31. Kf2 {[%emt 0:
00:00]} Ra1 {[%emt 0:00:06]} 32. Ne3 {[%emt 0:00:23]} Rxa3 {[%emt 0:00:17]} 33.
Rd1 {[%emt 0:00:28]} Nd4 {[%emt 0:08:29]} 34. Rc1 {[%emt 0:00:30]} Bc6 {
[%emt 0:00:49]} 35. Nf5 {[%emt 0:00:41]} Nxf5 {[%emt 0:00:14]} 36. exf5 {
[%emt 0:00:26]} Bd7 {[%emt 0:00:31]} 37. g4 {[%emt 0:00:19]} Kf7 {[%emt 0:00:
00]} 38. Rc7 {[%emt 0:00:26]} Ke7 {[%emt 0:00:14]} 39. Ra7 {[%emt 0:00:15]} Kd6
{[%emt 0:01:38]} 40. Kg3 {[%emt 0:00:31]} e4 {[%emt 0:01:57]} 41. Be2 {[%emt 0:
00:00]} exf3 {[%emt 0:06:29]} 42. Bd1 {[%emt 0:00:03]} g6 {[%emt 0:03:42]} 43.
fxg6 {[%emt 0:00:52]} hxg6 {[%emt 0:00:04]} 44. h4 {[%emt 0:01:25]} Bc6 {
[%emt 0:03:48]} 45. h5 {[%emt 0:01:37]} gxh5 {[%emt 0:00:28]} 46. gxh5 {
[%emt 0:00:02]} Ra2 {[%emt 0:07:16]} 47. Bxf3 {[%emt 0:01:11]} Ra3 {[%emt 0:00:
00]} 48. h6 {[%emt 0:00:06]} Rxf3+ {[%emt 0:00:31]} 49. Kg4 {[%emt 0:00:02]}
Rf1 {[%emt 0:01:03]} 50. h7 {[%emt 0:00:26]} Rh1 {[%emt 0:00:23]} 51. Kf5 {
[%emt 0:00:13]} Rh6 {[%emt 0:04:50]} 52. Rf7 {[%emt 0:01:57]} Bd7+ {[%emt 0:00:
00]} 53. Ke4 {[%emt 0:00:28]} Ke6 {[%emt 0:01:30]} 54. Rg7 {[%emt 0:00:02]}
Rh4+ {[%emt 0:01:35]} 55. Ke3 {[%emt 0:01:43]} Bc6 {[%emt 0:01:44]} 0-1

[Event "44th Chess Olympiad Women 2022"]
[Site "Chennai"]
[Date "2022.08.06"]
[Round "8.78"]
[White "Petrenko, Svetlana"]
[Black "Rivera Negron Yanira"]
[Result "1-0"]
[WhiteElo "2029"]
[BlackElo "1770"]
[Annotator "NA RC"]
[PlyCount "99"]
[EventDate "2022.??.??"]
[TimeControl "60"]

1. e4 {[%emt 0:00:05]} e6 {[%emt 0:00:06]} 2. Qe2 {[%emt 0:00:09]} c6 {[%emt 0:
00:00]} 3. g3 {[%emt 0:02:55]} d5 {[%emt 0:01:15]} 4. exd5 {[%emt 0:01:51]}
cxd5 {[%emt 0:00:06]} 5. d4 {[%emt 0:00:16]} Nf6 {[%emt 0:00:33]} 6. Bg2 {
[%emt 0:00:51]} b6 {[%emt 0:03:35]} 7. Nc3 {[%emt 0:02:56]} Ba6 {[%emt 0:06:12]
} 8. Nb5 {[%emt 0:00:39]} Qd7 {[%emt 0:05:22]} 9. a4 {[%emt 0:00:24]} Nc6 {
[%emt 0:07:08]} 10. Nf3 {[%emt 0:04:07]} Ne4 {[%emt 0:09:19]} 11. O-O {[%emt 0:
00:00]} Be7 {[%emt 0:02:37]} 12. Nc7+ {[%emt 0:11:03]} Qxc7 {[%emt 0:06:19]}
13. Qxa6 {[%emt 0:00:06]} O-O {[%emt 0:01:37]} 14. c3 {[%emt 0:11:12]} Rfc8 {
[%emt 0:07:34]} 15. Qe2 {[%emt 0:00:36]} Rab8 {[%emt 0:02:55]} 16. Ne1 {
[%emt 0:08:05]} Nf6 {[%emt 0:02:46]} 17. b4 {[%emt 0:08:12]} a5 {[%emt 0:06:23]
} 18. b5 {[%emt 0:00:57]} Nd8 {[%emt 0:00:21]} 19. Bb2 {[%emt 0:03:53]} Nb7 {
[%emt 0:01:37]} 20. Nd3 {[%emt 0:00:51]} Nd7 {[%emt 0:04:32]} 21. Bxd5 {
[%emt 0:03:46]} exd5 {[%emt 0:03:02]} 22. Qxe7 {[%emt 0:00:06]} Re8 {[%emt 0:
00:00]} 23. Qg5 {[%emt 0:03:01]} Qc4 {[%emt 0:03:32]} 24. Qd2 {[%emt 0:03:57]}
Nd6 {[%emt 0:01:42]} 25. f3 {[%emt 0:00:45]} Re7 {[%emt 0:01:36]} 26. Ba3 {
[%emt 0:01:55]} Rbe8 {[%emt 0:03:44]} 27. Nf4 {[%emt 0:11:33]} Ne4 {[%emt 0:00:
00]} 28. fxe4 {[%emt 0:00:19]} Rxe4 {[%emt 0:00:05]} 29. Bd6 {[%emt 0:07:17]}
h6 {[%emt 0:01:22]} 30. Qd3 {[%emt 0:04:06]} Qxd3 {[%emt 0:03:32]} 31. Nxd3 {
[%emt 0:00:02]} Rc8 {[%emt 0:00:23]} 32. Ra3 {[%emt 0:01:51]} Re3 {[%emt 0:00:
00]} 33. Ne5 {[%emt 0:02:22]} Nf6 {[%emt 0:02:27]} 34. Nc6 {[%emt 0:00:24]}
Rce8 {[%emt 0:00:21]} 35. Bf4 {[%emt 0:01:41]} Re2 {[%emt 0:00:55]} 36. Ne5 {
[%emt 0:01:32]} Ne4 {[%emt 0:01:22]} 37. c4 {[%emt 0:00:23]} f6 {[%emt 0:00:51]
} 38. Nd7 {[%emt 0:00:55]} dxc4 {[%emt 0:00:36]} 39. Nxb6 {[%emt 0:00:02]} c3 {
[%emt 0:00:10]} 40. Nd5 {[%emt 0:01:25]} c2 {[%emt 0:00:47]} 41. Nc3 {[%emt 0:
00:00]} Nxc3 {[%emt 0:32:54]} 42. Rxc3 {[%emt 0:00:08]} g5 {[%emt 0:00:23]} 43.
Bc1 {[%emt 0:00:24]} Rd8 {[%emt 0:00:00]} 44. b6 {[%emt 0:00:00]} Rb8 {[%emt 0:
00:00]} 45. Rc6 {[%emt 0:00:00]} Re4 {[%emt 0:00:00]} 46. Bb2 {[%emt 0:00:00]}
f5 {[%emt 0:00:00]} 47. Rxf5 {[%emt 0:00:00]} c1=Q+ {[%emt 0:00:00]} 48. Bxc1 {
[%emt 0:00:00]} Rxd4 {[%emt 0:00:00]} 49. Rxh6 {[%emt 0:00:00]} Rxa4 {[%emt 0:
00:00]} 50. Bb2 {[%emt 0:00:00]} 1-0